Cogmind - Beta 11.1 @@@ ROGUE MODE // 2022.11.15 @ 16:35:41 Player: Serom_69 Result: Destroyed by Y-45 Defender with Beam Rifle Performance ------------- Evolutions (1) 500 Regions Visited (2) 400 Robots Destroyed (34) 170 Value Destroyed (622) 622 Prototype IDs (2) 40 Alien Tech Used (0) 0 Bonus (16) 16 TOTAL SCORE: 1748 Bonus ------- High Alert Combat Kills 16 Cogmind --------- Core Integrity 0/400 Matter 236/300 Energy 265/265 System Corruption 0% Temperature Hot (232) Movement Rolling (95) Ox1 Location -9/Materials Parts ------- > --- POWER (1) -------- Improved Ion Engine > --- PROPULSION (3) --- Wheel Wheel > --- UTILITY (3) ------ Medium Storage Unit Transport Network Coupler Hardened Light Armor Plating > --- WEAPON (2) ------- Heavy Assault Rifle Heavy Assault Rifle > --- INVENTORY (10) --- Improved Hover Unit Improved Hover Unit Heat Sink Medium Laser Small Laser Light EM Pulse Cannon Improved Datajack Maul Peak State ------------ > --- POWER ------------ Improved Ion Engine > --- PROPULSION ------- Improved Flight Unit Improved Flight Unit Improved Flight Unit > --- UTILITY ---------- Medium Storage Unit Hardened Light Armor Plating > --- WEAPON ----------- Assault Rifle Heavy Assault Rifle > --- INVENTORY -------- Improved Hover Unit Improved Hover Unit Heat Sink Medium Laser Small Laser Light EM Pulse Cannon Improved Datajack Maul [Rating: 18] Favorites ----------- Power Improved Ion Engine Engine Improved Ion Engine Propulsion Light Treads Treads Light Treads Wheel Wheel Hover Unit Improved Hover Unit Flight Unit Flight Unit Utility Terrain Scanner Device Terrain Scanner Storage Small Storage Unit Processor Transport Network Coupler Protection Hardened Light Armor Plating Weapon Medium Laser Energy Gun Medium Laser Energy Cannon Light EM Pulse Cannon Ballistic Gun Minigun Impact Weapon Maul Special Melee Weapon Improved Datajack Build | -11 -10 -9 ------- Run | Scr Mat Mat Slots Evolved 2 | . . 2 Power . | . . . Propulsion 1 | . . 1 Utility 1 | . . 1 Weapon . | . . . Parts Attached 53 | 9 2 42 Power 3 | 1 . 2 Engine 3 | 1 . 2 Core . | . . . Reactor . | . . . Propulsion 17 | 2 . 15 Treads 3 | . . 3 Leg . | . . . Wheel 6 | 2 . 4 Hover 1 | . . 1 Flight 7 | . . 7 Utility 11 | 1 1 9 Device 3 | . 1 2 Storage 3 | 1 . 2 Processor 1 | . . 1 Hackware . | . . . Protection 4 | . . 4 Artifact . | . . . Weapon 22 | 5 1 16 Energy Gun 7 | 3 . 4 Energy Cannon 2 | . . 2 Ballistic Gun 9 | 2 1 6 Ballistic Cannon . | . . . Launcher . | . . . Special Weapon . | . . . Impact Weapon 2 | . . 2 Slashing Weapon . | . . . Piercing Weapon . | . . . Special Melee Weapon 2 | . . 2 Unidentified Prototypes 2 | . . 2 Parts Lost 9 | . . 9 Power 2 | . . 2 Propulsion 2 | . . 2 Utility 2 | . . 2 Weapon 3 | . . 3 Highest Loss Streak 4 | . . 4 To Critical Strikes . | . . . Average Slot Usage (%) 87 | . 91 87 Engine 10 | . 14 10 Treads 9 | . . 11 Wheel 11 | . 28 7 Flight 5 | . . 6 Device 12 | . 5 13 Storage 11 | . 14 10 Protection 5 | . . 6 Energy Gun 9 | . 18 7 Ballistic Gun 8 | . 9 8 Impact Weapon 2 | . . 2 Naked Turns . | . . . Heaviest Build 29 | 13 15 29 Greatest Support 60 | 26 26 60 Greatest Overweight (x) 3 | . . 3 Average Overweight (x) . | . . . Largest Inventory Capacity 10 | 8 8 10 Average Capacity 8 | 7 8 8 Most Carried 10 | 5 4 10 Average Carried 5 | 1 1 6 Final Capacity 10 | 8 8 10 Final Carried 8 | 1 2 8 Class Distribution -------------------- 55% | Scavenger-Mutant 44% | Mutant Dominant Class ---------------- Mutant | -10/Materials Scavenger-Mutant | -9/Materials Resources | -11 -10 -9 ----------- Run | Scr Mat Mat Matter Collected 938 | 279 . 659 Remotely . | . . . Salvage Created 1189 | 59 . 1130 Parts 85 | . . 85 Haulers Intercepted 3 | . . 3 Recyclers Shooed 2 | . . 2 Parts Field Recycled . | . . . Retrieved Matter . | . . . Parts Self-Destructed . | . . . Prevented . | . . . Kills | -11 -10 -9 ------- Run | Scr Mat Mat Combat Hostiles Destroyed 19 | . . 19 Guns 14 | . . 14 Cannons 1 | . . 1 AOE 4 | . . 4 Classes Destroyed 9 | 1 . 8 Worker 1 | . . 1 Builder 5 | . . 5 Tunneler 1 | . . 1 Hauler 3 | . . 3 Recycler 3 | 1 . 2 Watcher 2 | . . 2 Swarmer 8 | . . 8 Grunt 5 | . . 5 Sentry 6 | . . 6 Best Kill Streak 9 | 1 . 9 Combat Bots Only 9 | . . 9 Max Kills in Single Turn 4 | 1 . 4 Gunslinging 1 | . . 1 Exploded 4 | . . 4 Melee . | . . . Uniques/NPCs Destroyed . | . . . Combat | -11 -10 -9 -------- Run | Scr Mat Mat Damage Taken 2001 | . 50 1951 Core 422 | . 10 412 Absorbed by Shields . | . . . Core Remaining (%) 98 | 100 96 . Volleys Fired 101 | 8 3 90 Largest 2 | 2 2 2 Hottest 90 | 90 70 90 Shots Fired 168 | 14 6 148 Gun 156 | 14 6 136 Cannon 12 | . . 12 Launcher . | . . . Special . | . . . Kinetic 86 | . 3 83 Thermal 61 | 14 3 44 Explosive . | . . . Electromagnetic 21 | . . 21 Robot Hit Streak 7 | 3 1 7 Robot Miss Streak 9 | 2 2 9 Penetration Max . | . . . Secondary Targets 3 | . . 3 Max Gunslinging Chain 1 | . . 1 Shots Hit Robots 109 | 8 2 99 Core Hits 49 | 2 . 47 Critical Kills . | . . . Critical Parts Destroyed . | . . . Critical Strikes 4 | . 1 3 Burn 3 | . 1 2 Corrupt 1 | . . 1 Melee Attacks 18 | . . 18 Impact 13 | . . 13 Slashing . | . . . Piercing . | . . . Sneak Attacks 3 | . . 3 Combat Hostiles . | . . . Follow-up Attacks . | . . . Damage Inflicted 1832 | 95 13 1724 Guns 1447 | 95 13 1339 Cannons 165 | . . 165 Explosions 188 | . . 188 Melee 32 | . . 32 Ramming . | . . . Kinetic 975 | . . 975 Thermal 574 | 95 13 466 Explosive . | . . . Electromagnetic 251 | . . 251 Impact 32 | . . 32 Slashing . | . . . Piercing . | . . . Highest Corruption . | . . . Average Corruption . | . . . Corruption Purged . | . . . Corruption Blocked . | . . . Overload Shots . | . . . Overflow Damage 12 | . . 12 Projectiles . | . . . Explosions . | . . . Melee 12 | . . 12 Knockbacks 1 | . . 1 Impact 1 | . . 1 Kinetic . | . . . Secondary . | . . . Self-Inflicted Damage 39 | . . 39 Shots 1 | . . 1 Rammed . | . . . Targets Rammed . | . . . Kicked . | . . . Crushed . | . . . Highest Temperature 417 | 200 15 417 Average Temperature 136 | 99 7 150 Received Heat Transfer 852 | . 30 822 Effects 5 | . . 5 Shutdowns 1 | . . 1 Energy Bleed 1 | . . 1 Interference 3 | . . 3 Siege Activations . | . . . Robots Corrupted . | . . . Combat Hostiles . | . . . Parts Fried . | . . . Impact Corruptions 1 | . . 1 Robots Melted . | . . . Combat Hostiles . | . . . Parts Melted 3 | 1 . 2 Heat Transferred 1636 | 260 111 1265 Parts Sabotaged . | . . . Parts Stolen . | . . . Parts Stripped . | . . . Power Chain Reactions 2 | . . 2 Missiles Intercepted . | . . . Alert | -11 -10 -9 ------- Run | Scr Mat Mat Peak Influence 507 | 5 3 507 Initial 3 | . 3 . Average 246 | 1 3 312 Maximum Alert Level 2 | . . 2 Low Security (%) 28 | 100 100 8 Level 1 58 | . . 74 Level 2 13 | . . 17 Level 3 . | . . . Level 4 . | . . . Level 5 . | . . . High Security . | . . . Max Security . | . . . Squads Dispatched 7 | . 2 5 Investigation 6 | . 1 5 Extermination . | . . . Reinforcement 1 | . 1 . Assault . | . . . Garrison . | . . . Intercept . | . . . Searches Triggered . | . . . Construction Impeded . | . . . Haulers Reinforced . | . . . Active Scanning Responses . | . . . Cargo Convoy Interrupts . | . . . Stealth | -11 -10 -9 --------- Run | Scr Mat Mat Distress Signals 2 | . . 2 Communications Jammed . | . . . Distress Signals . | . . . Times Spotted 40 | . 6 34 Peak Tracking Total 9 | . 4 9 Tactical Retreats 6 | . . 6 Traps | -11 -10 -9 ------- Run | Scr Mat Mat Traps Triggered 2 | . 1 1 Indirectly . | . . . Trap Hack Attempts . | . . . Triggered . | . . . Disarmed . | . . . Reprogrammed . | . . . Reused . | . . . Traps Extracted . | . . . Installed . | . . . Triggered . | . . . Machines | -11 -10 -9 ---------- Run | Scr Mat Mat Machines Disabled 2 | . . 2 Max in Single Turn 1 | . . 1 Machines Sabotaged . | . . . Garrisons Compromised . | . . . Overloaded Fab Kills . | . . . Hacking | -11 -10 -9 --------- Run | Scr Mat Mat Machines Accessed 7 | . 1 6 Terminals 5 | . . 5 Fabricators . | . . . Repair Stations . | . . . Recycling Units 2 | . 1 1 Scanalyzers . | . . . Garrison Access . | . . . Total Hacks 27 | . 3 24 Successful 17 | . 3 14 Failed 8 | . . 8 Catastrophic 3 | . . 3 Database Lockouts 2 | . . 2 Manual . | . . . Terminals 21 | . . 21 Fabricators . | . . . Repair Stations . | . . . Recycling Units 6 | . 3 3 Scanalyzers . | . . . Garrison Access . | . . . Terminal Hacks 12 | . . 12 Record 6 | . . 6 Branch Access Points 1 | . . 1 Terminal Index 1 | . . 1 Alert Level 1 | . . 1 Locate Traps 1 | . . 1 Surveillance Status 1 | . . 1 Hauler Manifests 1 | . . 1 Fabricator Hacks . | . . . Repair Station Hacks . | . . . Recycling Unit Hacks 5 | . 3 2 Recycle Component 3 | . 3 . Process 1 | . . 1 Retrieve Matter 1 | . . 1 Scanalyzer . | . . . Garrison Access Hacks . | . . . Unauthorized Hacks . | . . . Terminals . | . . . Fabricators . | . . . Repair Stations . | . . . Recycling Units . | . . . Scanalyzers . | . . . Garrison Access . | . . . Data Cores Recovered . | . . . Used . | . . . Hacking Detections 6 | . 1 5 Full Trace Events 5 | . . 5 Feedback Events . | . . . Feedback Blocked . | . . . Robot Schematics Acquired . | . . . Robots Built . | . . . Authchips . | . . . Time . | . . . Total Robot Build Rating . | . . . Part Schematics Acquired . | . . . Parts Built . | . . . Authchips . | . . . Time . | . . . Total Part Build Rating . | . . . Parts Repaired . | . . . Time . | . . . Parts Recycled 3 | . 3 . Recycled Matter 134 | . . 134 Retrieved Matter 276 | . . 276 Retrieved Components . | . . . Parts Scanalyzed . | . . . Part Schematics Acquired . | . . . Parts Damaged . | . . . Bothacking | -11 -10 -9 ------------ Run | Scr Mat Mat Used RIF Installer . | . . . Robots Hacked 2 | . . 2 Non-combat 1 | . . 1 Combat 1 | . . 1 Robot Hacks Applied 3 | . . 3 parse_system 2 | . . 2 no_distress 1 | . . 1 Relay Couplers Released . | . . . Fabnet Peak Effective % . | . . . Robots Rewired . | . . . Allies Hacked . | . . . Hacks Repelled . | . . . Allies | -11 -10 -9 -------- Run | Scr Mat Mat Total Allies . | . . . Largest Group . | . . . Highest-Rated Group . | . . . Highest-Rated Ally . | . . . Total Orders . | . . . Ally Attacks . | . . . Total Damage . | . . . Kills . | . . . Allies Corrupted . | . . . Allies Melted . | . . . Intel | -11 -10 -9 ------- Run | Scr Mat Mat Robot Analysis Total . | . . . Derelict Logs Recovered . | . . . Drone Launches . | . . . Drone Recoveries . | . . . Exploration | -11 -10 -9 ------------- Run | Scr Mat Mat Turns Passed 1346 | 81 207 1058 Spaces Moved 1101 | 39 210 852 Core 21 | 17 . 4 Treads 155 | . . 155 Legs . | . . . Wheels 504 | 22 210 272 Hover . | . . . Flight 421 | . . 421 Fastest Speed 34 | 50 90 34 Average Speed 79 | 72 90 77 Slowest Speed 200 | 90 90 200 Overloaded Moves . | . . . Propulsion Burnouts . | . . . Robots Hopped . | . . . Cave-ins Triggered . | . . . Exploration Rate (%) 33 | 4 36 59 Regions Visited 2 Branch Regions . Pre-discovered Areas . | . . . Known Exits Taken . | . . . Unknown Exits Taken 2 | 1 1 . Scrap Searched . | . . . Spaces Dug 10 | . . 10 Terrain Destroyed 17 | . . 17 Melee 10 | . . 10 Projectile . | . . . AOE 7 | . . 7 Terrain Rammed . | . . . Walls Destroyed . | . . . Machines Disabled . | . . . Actions | -11 -10 -9 --------- Run | Scr Mat Mat Total 1381 | 77 221 1083 Wait 52 | 15 2 35 Move 1099 | 38 209 852 Hop . | . . . Pick Up 39 | 5 5 29 Fast Attach 4 | 2 . 2 Attach 27 | 6 1 20 Detach 3 | 2 . 1 Swap 22 | 1 1 20 Drop 16 | . . 16 Fire 101 | 8 3 90 Melee 18 | . . 18 Ram . | . . . Kick . | . . . Crush . | . . . Escape Stasis . | . . . Rewire . | . . . Trap . | . . . Miscellaneous . | . . . Route ------- -11/Scrapyard -10/Materials (discovered 3 exits: *Mat / [*Min x2]) -9/Materials (discovered 4 exits: [*Mat] / *Min / *Sto x2) History --------- Turn | Location | Event 11 | -11/Scrapyard | Discovered new exit (range 15) 82 | -11/Scrapyard | Entered Materials 91 | -10/Materials | Discovered new exit (range 16) 222 | -10/Materials | Discovered new exit (range 15) 271 | -10/Materials | Discovered new exit (range 13) 289 | -10/Materials | Entered another Materials area 289 | -9/Materials | Evolved 2 slots: Propulsion x1, Utility x1 304 | -9/Materials | Build established: Mutant 405 | -9/Materials | Destroyed 9 combat bots 414 | -9/Materials | Lost 4 parts (1p1n1u1w) 434 | -9/Materials | Central database locked down 447 | -9/Materials | Central database locked down 474 | -9/Materials | Identified exit to Mines 474 | -9/Materials | Identified exit to Storage 610 | -9/Materials | Discovered new exit (range 4) 1108 | -9/Materials | Core integrity fell below 50% 1174 | -9/Materials | Build established: Scavenger-Mutant 1318 | -9/Materials | Core integrity fell below 20% 1347 | -9/Materials | Destroyed by Y-45 Defender with Beam Rifle Last Messages --------------- are equipped with a wider array of devices for more quickly and safely analyzing esoteric technologies. >>Query(Blade Trap) A simple trap mechanism, though the effectiveness of forcibly detaching target components is not to be underestimated where hostile forces are incapable of rebuilding in the field. 01286_ ALERT: Suspicious activity at Terminal M012. Dispatching Investigation squad. 01287_ T-07 Excavator is excavating. [Achievement: Part-time Excavator] 01314_ The unstable cave ceiling collapses. 01317_ Critical hit (Burn: +37). 01317_ Wheel destroyed. 01322_ G-34 Mercenary destroyed. 01327_ The unstable cave ceiling collapses. 01328_ U-05 Engineer destroyed. 01334_ G-34 Mercenary destroyed. 01346_ Overheating: System interference. 01346_ Hvy. Assault Rifle temporarily disabled. 01346_ Transport Network Coupler temporarily disabled. Map ----- +----------------------------------------------------+ | ?????????????????????????????? | | ?????????????????????????????? | | ?????????????????????????????? | | ?????????????????????????????? | | ?????????????????????????????? | | ?????????????????????????????? | | ?????????????????????????????? | | ????????????????????????###### | | ????????????????????##### | | ????????????????????? | | ???????????????>?????? > | | ??????????????????????? | | ????????????????????????# | | ?????????????????????????# # | | ?????????????????????????# # | | ?????????????????????????# # | | ?????????????????????????# + | | ?????????????????????????# # | | ?????????#######?????????# # | | ?????????# ########### # | | ?????###?# # | | ?????# #?# T # | | ?????###?# # | | ?????###?# ##########+#### | | ######[#### ##???????? ?# | | # @%=%!# #??????? # | | # Y=# #???????? # | | # =%!+ #??????? # | | # """ ! # #??????# # | | # """ # #??????# + | | # """ # #??????# # | | # [[ # #???????? # | | # [[ # #???????? # | | ########### #???????? # | | ??????????# ???????? ? | | ??????????# ##???????#####?? | | ??????????# #???????????##?? | | ??????????? #??????????????? | | ??????????? #??????????????? | | ??????????? #??????????????# | | ??????????? #????????????##? | | ??????????? ???????????????? | | ?????????????????????????????? | | ?????????????????"???????#???# | | ????????????????????????????#? | | ?????????????????????#???????? | | ????????????????????????#????? | | ???????????????????????????#?# | | ?????????????????????########? | | ??????????????#??"???#| """=#? | +----------------------------------------------------+ Best States ------------- Heat Dissipation 38 Energy Generation 12 Energy Capacity 265 Matter Stores 300 Matter Capacity 300 Sight Range 16 Terrain Scan Range 14 Terrain Scan Density 10 Armor Coverage 150 Evasion (%) 63 Recoil Reduction 3 Item Schematics ----------------- None Robot Schematics ------------------ None Fabricated ------------ Nothing Alien Tech Used ----------------- None Achievements -------------- Part-time Excavator Party Time Shopping List Challenges ------------ None Game ------ Seed PrecisionMolecularClaws Manual? 1 Play Time 00:51:56 Cumulative 15.0 hours Start 2022.11.15 @ 15:39:59 End 2022.11.15 @ 16:35:41 Sessions 1 Manual Loads 0 Difficulty Rogue Special Mode None Game No. 11 Rogue 11 Adventurer 0 Explorer 0 Win Type - Total 0 Types 0/0/0/0/0/0/0/0/0 Lore% 6 Gallery% 13 Achievement% 14 Wizard Run 0 Options --------- ASCII 0 Keyboard 0 Movement Mouse Keybinds 0 Fullscreen 1 Font 24/Terminus Map View 76x50 Tactical HUD 1 Map Filters NONE Filters NONE Steam 1 RUN: c87880a2-ad2f-4e6d-8e62-0cb94d27e9c4